[Event "Kuwait Championship Stage-I 2024"]
[Site "Qadsiya"]
[Date "2024.01.22"]
[Round "1.1"]
[White "Alansari, Omar"]
[Black "Al-Hajiri, Bader"]
[Result "0-1"]
[ECO "B21"]
[WhiteElo "1262"]
[BlackElo "1890"]
[Annotator "NA RC COMBH"]
[PlyCount "66"]
[EventDate "2024.01.22"]
[EventType "swiss"]
[EventCountry "KUW"]
[SourceTitle "playchess.com"]
[Source "ChessBase"]
[SourceQuality "1"]
[TimeControl "5400+30"]

1. e4 {[%emt 0:00:04]} c5 {[%emt 0:00:29]} 2. d4 {[%emt 0:00:46]} cxd4 {[%emt 0:00:25]} 3. c3 {[%emt 0:00:09]} dxc3 {[%emt 0:00:08]} 4. Nxc3 {[%emt 0:00:04]} d6 {[%emt 0:01:00]} 5. Bc4 {[%emt 0:00:35]} Nc6 {[%emt 0:00:27]} 6. Nf3 {[%emt 0:00:23]} e6 {[%emt 0:01:13]} 7. O-O {[%emt 0:01:17]} Nf6 {[%emt 0:00:12]} 8. Qe2 {[%emt 0:04:30]} Be7 {[%emt 0:04:58]} 9. e5 {[%emt 0:03:13]} dxe5 {[%emt 0:02:47]} 10. Nxe5 {[%emt 0:01:21]} Nxe5 {[%emt 0:00:39]} 11. Qxe5 {[%emt 0:00:04]} O-O {[%emt 0:00:15]} 12. Rd1 {[%emt 0:07:55]} Qb6 {[%emt 0:03:30]} 13. Na4 {[%emt 0:07:21]} Qxf2+ {[%emt 0:02:24]} 14. Kxf2 {[%emt 0:02:56]} Ng4+ {[%emt 0:00:09]} 15. Kf1 {[%emt 0:00:25]} Nxe5 {[%emt 0:00:07]} 16. Bb3 {[%emt 0:01:04]} b5 {[%emt 0:03:25]} 17. Nc3 {[%emt 0:00:12]} Ba6 {[%emt 0:00:14]} 18. Kg1 {[%emt 0:04:57]} Bc5+ {[%emt 0:04:59]} 19. Kh1 {[%emt 0:00:12]} Ng4 {[%emt 0:00:29]} 20. Ne4 {[%emt 0:01:36]} Bb6 {[%emt 0:00:16]} 21. h3 {[%emt 0:01:17]} Bb7 {[%emt 0:00:44]} 22. hxg4 {[%emt 0:00:44]} Bxe4 {[%emt 0:00:08]} 23. Bf4 {[%emt 0:01:38]} Rfd8 {[%emt 0:00:50]} 24. Bg5 {[%emt 0:01:49]} Rd4 {[%emt 0:01:11]} 25. Kh2 {[%emt 0:08:28]} h6 {[%emt 0:00:32]} 26. Bh4 {[%emt 0:01:28]} Bb7 {[%emt 0:03:26]} 27. Kh3 {[%emt 0:01:20]} g5 {[%emt 0:04:05]} 28. Bg3 {[%emt 0:04:38]} Rad8 {[%emt 0:00:39]} 29. Be5 {[%emt 0:06:44]} Rd2 {[%emt 0:00:26]} 30. Rxd2 {[%emt 0:01:36]} Rxd2 {[%emt 0:00:09]} 31. Rd1 {[%emt 0:00:40]} Re2 {[%emt 0:02:03]} 32. Bf6 {[%emt 0:01:18]} Bxg2+ {[%emt 0:00:23]} 33. Kg3 {[%emt 0:00:25]} Bc7+ {[%emt 0:00:08]} 0-1

[Event "Kuwait Championship Stage-I 2024"]
[Site "Qadsiya"]
[Date "2024.01.22"]
[Round "1.2"]
[White "Hashem, Khaled"]
[Black "Alsayer, Bader"]
[Result "1-0"]
[ECO "E05"]
[WhiteElo "1868"]
[BlackElo "1260"]
[Annotator "NA RC COMBH"]
[PlyCount "81"]
[EventDate "2024.01.22"]
[EventType "swiss"]
[EventCountry "KUW"]
[SourceTitle "playchess.com"]
[Source "ChessBase"]
[SourceQuality "1"]
[TimeControl "5400+30"]

1. d4 {[%emt 1:00:06]} Nf6 {[%emt 1:00:05]} 2. c4 {[%emt 0:00:00]} e6 {[%emt 0:00:00]} 3. Nf3 {[%emt 0:00:00]} d5 {[%emt 0:00:00]} 4. g3 {[%emt 0:00:00]} dxc4 {[%emt 0:00:00]} 5. Bg2 {[%emt 0:00:00]} Nc6 {[%emt 0:00:00]} 6. O-O {[%emt 0:00:00]} Be7 {[%emt 0:00:00]} 7. Qa4 {[%emt 0:00:00]} O-O {[%emt 0:00:00]} 8. Qxc4 {[%emt 0:00:00]} Qd5 {[%emt 0:00:00]} 9. Qa4 {[%emt 0:00:00]} Qd8 10. Nc3 {[%emt 0:00:00]} Bb4 11. a3 {[%emt 0:00:00]} Bxc3 {[%emt 0:00:00]} 12. bxc3 {[%emt 0:00:00]} Nd5 {[%emt 0:00:00]} 13. Qc2 {[%emt 0:00:00]} f5 {[%emt 0:00:00]} 14. e4 {[%emt 0:00:00]} fxe4 {[%emt 0:00:00]} 15. Ng5 {[%emt 0:00:00]} Nf6 {[%emt 0:00:00]} 16. Nxe4 {[%emt 0:00:00]} Nxe4 {[%emt 0:00:00]} 17. Bxe4 {[%emt 0:00:00]} h6 {[%emt 0:00:00]} 18. Rb1 {[%emt 0:00:00]} Qd6 {[%emt 0:00:00]} 19. a4 {[%emt 0:00:00]} Rb8 {[%emt 0:00:00]} 20. Bf4 {[%emt 0:00:00]} Rxf4 {[%emt 0:02:12]} 21. gxf4 {[%emt 0:00:00]} Qxf4 {[%emt 0:00:30]} 22. Qe2 {[%emt 0:00:00]} Bd7 {[%emt 0:00:34]} 23. Kh1 {[%emt 0:24:17]} e5 {[%emt 0:09:44]} 24. d5 {[%emt 0:02:05]} Ne7 {[%emt 0:01:38] [#]} 25. Rg1 {[%emt 0:01:35]} (25. Qc4 $1 $18 Bf5 26. f3 (26. Qxc7 {leads to mate.} Bxe4+ 27. f3 Bxf3+ {[%mdl 64] Discovered Attack} 28. Rxf3 Qxf3+ 29. Kg1 Qg4+ 30. Kh1 Qe4+ 31. Kg1 Qxb1+ 32. Kg2 Qe4+ 33. Kg3 Rf8 34. h4 Rf3+ 35. Kh2 Rf2+ 36. Kh3 Qg2#)) 25... Kh8 {[%emt 0:04:05]} 26. a5 {[%emt 0:03:32]} Ng8 {[%emt 0:06:58]} 27. Qf3 {[%emt 0:05:34]} Qh4 {[%emt 0:03:49]} 28. Rb4 {[%emt 0:01:08]} Qe7 {[%emt 0:01:29]} 29. Qe3 {[%emt 0:02:19]} a6 {[%emt 0:04:08]} 30. Rgb1 {[%emt 0:00:48]} Nf6 {[%emt 0:01:46]} 31. Rxb7 {[%emt 0:01:03]} Rf8 {[%emt 0:00:07]} 32. f3 {[%emt 0:00:58]} Nxe4 {[%emt 0:01:27]} 33. fxe4 {[%emt 0:00:01]} Kh7 34. Rxc7 {[%emt 0:00:38]} Qd6 {[%emt 0:01:35]} 35. Rbb7 {[%emt 0:00:30]} Qf6 {[%emt 0:01:01] [#]} 36. Qe2 $1 {[%emt 0:01:36]} ({Inferior is} 36. Rxd7 Qf1+ 37. Qg1 Qf3+ 38. Qg2 Qd1+ 39. Qg1 Qf3+ 40. Qg2 Qd1+ 41. Qg1 Qf3+ $11) 36... Qf4 {[%emt 0:00:27]} 37. Rxd7 {[%emt 0:00:50]} Qc1+ {[%emt 0:00:46]} 38. Kg2 {[%emt 0:00:01]} Qg5+ {[%emt 0:00:22]} 39. Kh3 {[%emt 0:00:32]} Rg8 {[%emt 0:01:25]} 40. Qf3 {[%emt 0:01:28]} Kh8 {[%emt 0:00:34]} 41. c4 {[%emt 0:00:23]} 1-0

[Event "Kuwait Championship Stage-I 2024"]
[Site "Qadsiya"]
[Date "2024.01.22"]
[Round "1.3"]
[White "Husain, Sulaiman A.M."]
[Black "Al Ibrahim, Abdulrahman"]
[Result "0-1"]
[ECO "D00"]
[WhiteElo "1636"]
[BlackElo "1854"]
[Annotator "NA RC COMBH"]
[PlyCount "31"]
[EventDate "2024.01.22"]
[EventType "swiss"]
[EventCountry "KUW"]
[SourceTitle "playchess.com"]
[Source "ChessBase"]
[SourceQuality "1"]
[TimeControl "5400+30"]

1. d4 {[%emt 0:00:02]} d5 {[%emt 0:00:06]} 2. e4 {[%emt 0:00:08]} dxe4 {[%emt 0:00:44]} 3. Nc3 {[%emt 0:00:02]} Nf6 {[%emt 0:01:03]} 4. f3 {[%emt 0:00:02]} exf3 {[%emt 0:08:13]} 5. Nxf3 {[%emt 0:00:30]} e6 {[%emt 0:00:30]} 6. Bd3 {[%emt 0:00:30]} Be7 {[%emt 0:00:30]} 7. O-O {[%emt 0:00:00]} c5 {[%emt 1:22:54]} 8. Ne4 {[%emt 0:06:22]} cxd4 {[%emt 0:00:00]} 9. Nxd4 {[%emt 0:00:03]} Qxd4+ {[%emt 0:00:00]} 10. Kh1 {[%emt 0:01:02]} Nc6 {[%emt 0:00:00]} 11. Nxf6+ {[%emt 0:03:36]} Bxf6 {[%emt 0:00:00]} 12. Rf4 {[%emt 0:02:18]} Qd8 {[%emt 0:00:00]} 13. Qf1 {[%emt 0:06:37]} O-O {[%emt 0:00:00]} 14. c3 {[%emt 0:05:28]} b6 {[%emt 0:00:00]} 15. Be3 {[%emt 0:02:12]} Bb7 {[%emt 0:00:00]} 16. Rd1 {[%emt 0:00:45]} 0-1

[Event "Kuwait Championship Stage-I 2024"]
[Site "Qadsiya"]
[Date "2024.01.22"]
[Round "1.4"]
[White "Alhejab, Meshal"]
[Black "Almanaseer, Talal"]
[Result "1-0"]
[ECO "C10"]
[WhiteElo "1787"]
[BlackElo "1249"]
[Annotator "NA RC COMBH"]
[PlyCount "55"]
[EventDate "2024.01.22"]
[EventType "swiss"]
[EventCountry "KUW"]
[SourceTitle "playchess.com"]
[Source "ChessBase"]
[SourceQuality "1"]
[TimeControl "5400+30"]

1. e4 {[%emt 0:00:02]} e6 {[%emt 0:00:10]} 2. d4 {[%emt 0:00:16]} d5 {[%emt 0:00:14]} 3. Nc3 {[%emt 0:00:11]} dxe4 {[%emt 0:02:01]} 4. Nxe4 {[%emt 0:00:15]} Nd7 {[%emt 0:00:06]} 5. Nf3 {[%emt 0:01:48]} Ngf6 {[%emt 0:00:20]} 6. Nxf6+ {[%emt 0:00:09]} Nxf6 {[%emt 0:00:12]} 7. c3 {[%emt 0:01:42]} c5 {[%emt 0:01:22]} 8. Ne5 {[%emt 0:06:57]} a6 {[%emt 0:04:09]} 9. Bg5 {[%emt 0:16:17]} Be7 {[%emt 0:24:52]} 10. Qa4+ {[%emt 0:06:47]} Nd7 {[%emt 0:04:38]} 11. Bxe7 {[%emt 0:02:50]} Qxe7 {[%emt 0:01:32]} 12. Bb5 {[%emt 0:02:51]} f6 {[%emt 0:07:24]} 13. Bxd7+ {[%emt 0:03:03]} Bxd7 {[%emt 0:01:40]} 14. Qxd7+ {[%emt 0:00:16]} Qxd7 {[%emt 0:00:58]} 15. Nxd7 {[%emt 0:00:08]} Kxd7 {[%emt 0:00:12]} 16. dxc5 {[%emt 0:00:13]} Kc6 {[%emt 0:02:00]} 17. O-O-O {[%emt 0:01:59]} Rad8 {[%emt 0:05:21]} 18. b4 {[%emt 0:06:05]} Rd7 {[%emt 0:07:32]} 19. Rxd7 {[%emt 0:02:29]} Kxd7 {[%emt 0:00:15]} 20. Rd1+ {[%emt 0:00:16]} Kc7 {[%emt 0:01:46]} 21. Rd6 {[%emt 0:01:12]} e5 {[%emt 0:00:16]} 22. Kd2 {[%emt 0:00:28]} Rd8 {[%emt 0:02:12]} 23. Rxd8 {[%emt 0:00:09]} Kxd8 {[%emt 0:00:09]} 24. Kd3 {[%emt 0:10:58]} Kd7 {[%emt 0:03:08]} 25. Kc4 {[%emt 0:01:54]} Kc6 {[%emt 0:08:02]} 26. a4 {[%emt 0:02:08]} b5+ {[%emt 0:09:32]} 27. cxb6 {[%emt 0:00:19]} Kxb6 {[%emt 0:00:09]} 28. Kd5 {[%emt 0:00:09]} 1-0

[Event "Kuwait Championship Stage-I 2024"]
[Site "Qadsiya"]
[Date "2024.01.22"]
[Round "1.5"]
[White "Alqattan, Osamah"]
[Black "Alsaqer, Meshal"]
[Result "0-1"]
[ECO "E11"]
[WhiteElo "1239"]
[BlackElo "1753"]
[Annotator "NA RC COMBH"]
[PlyCount "58"]
[EventDate "2024.01.22"]
[EventType "swiss"]
[EventCountry "KUW"]
[SourceTitle "playchess.com"]
[Source "ChessBase"]
[SourceQuality "1"]
[TimeControl "5400+30"]

1. d4 {[%emt 0:00:04]} d5 {[%emt 0:18:16]} 2. c4 {[%emt 0:01:55]} e6 {[%emt 0:00:20]} 3. g3 {[%emt 0:01:24]} Nf6 {[%emt 0:00:40]} 4. Bg2 {[%emt 0:01:20]} Bb4+ {[%emt 0:00:39]} 5. Bd2 {[%emt 0:00:43]} Be7 {[%emt 0:00:32]} 6. Nf3 {[%emt 0:00:54]} O-O {[%emt 0:00:47]} 7. O-O {[%emt 1:27:40]} c6 {[%emt 1:12:46]} 8. Nc3 {[%emt 0:00:00]} Nbd7 {[%emt 0:00:00]} 9. Qc2 {[%emt 0:00:00]} b6 {[%emt 0:00:00]} 10. b3 {[%emt 0:00:00]} Ba6 {[%emt 0:00:00]} 11. cxd5 {[%emt 0:00:00]} cxd5 {[%emt 0:00:00]} 12. Rfe1 {[%emt 0:00:00]} Rc8 {[%emt 0:00:00]} 13. Rac1 {[%emt 0:00:00]} Ba3 {[%emt 0:00:00]} 14. Rcd1 {[%emt 0:00:00]} Ne4 {[%emt 0:00:00]} 15. Ne5 {[%emt 0:00:00]} Nxc3 {[%emt 0:00:00]} 16. Bxc3 {[%emt 0:00:00]} Nxe5 {[%emt 0:00:00]} 17. dxe5 {[%emt 0:00:00]} Bb4 {[%emt 0:00:00]} 18. Be4 {[%emt 0:00:00]} Bxc3 {[%emt 0:00:00]} 19. Bxh7+ {[%emt 0:00:00]} Kh8 {[%emt 0:00:00]} 20. Qb1 {[%emt 0:00:00]} Qg5 {[%emt 0:00:00]} 21. f4 {[%emt 0:00:00]} Qh6 {[%emt 0:00:00]} 22. Bc2 {[%emt 0:00:00]} Bxe1 {[%emt 0:00:00]} 23. Rxe1 {[%emt 0:00:00]} Rc3 {[%emt 0:00:00]} 24. f5 {[%emt 0:00:00]} Qe3+ {[%emt 0:00:00]} 25. Kg2 {[%emt 0:00:00]} Bxe2 {[%emt 0:00:00]} 26. f6 {[%emt 0:00:00]} Qd2 {[%emt 0:00:00]} 27. fxg7+ {[%emt 0:00:00]} Kxg7 {[%emt 0:00:00]} 28. Rxe2 {[%emt 0:00:00]} Qxe2+ {[%emt 0:00:00]} 29. Kg1 {[%emt 0:01:49]} Rxc2 {[%emt 0:00:00]} 0-1

[Event "Kuwait Championship Stage-I 2024"]
[Site "Qadsiya"]
[Date "2024.01.22"]
[Round "1.7"]
[White "Alasfour, Zaid"]
[Black "Hussain, Hashem"]
[Result "0-1"]
[ECO "B22"]
[WhiteElo "1188"]
[BlackElo "1642"]
[Annotator "NA RC COMBH"]
[PlyCount "126"]
[EventDate "2024.01.22"]
[EventType "swiss"]
[EventCountry "KUW"]
[SourceTitle "playchess.com"]
[Source "ChessBase"]
[SourceQuality "1"]
[TimeControl "5400+30"]

1. e4 {[%emt 0:50:46]} c5 {[%emt 1:03:23]} 2. c3 {[%emt 0:00:30]} g6 {[%emt 0:00:30]} 3. d4 {[%emt 0:00:30]} cxd4 {[%emt 0:00:30]} 4. cxd4 {[%emt 0:00:30]} d5 {[%emt 0:00:30]} 5. exd5 {[%emt 0:00:30]} Nf6 {[%emt 0:00:30]} 6. Nf3 {[%emt 0:00:30]} Nxd5 {[%emt 0:00:30]} 7. Bc4 {[%emt 0:00:30]} Nb6 {[%emt 0:00:30]} 8. Qb3 {[%emt 0:00:30]} Nxc4 {[%emt 0:00:30]} 9. Qxc4 {[%emt 0:00:30]} Bg7 {[%emt 0:00:30]} 10. O-O {[%emt 0:00:30]} O-O {[%emt 0:00:30]} 11. Bg5 {[%emt 0:00:30]} h6 {[%emt 0:00:30]} 12. Bh4 {[%emt 0:00:30]} Be6 {[%emt 0:00:30]} 13. Qb4 {[%emt 0:00:30]} g5 {[%emt 0:00:30]} 14. Bg3 {[%emt 0:00:30]} Nc6 {[%emt 0:00:30]} 15. Qxb7 {[%emt 0:00:30]} Bd5 {[%emt 0:00:30]} 16. Nc3 {[%emt 0:00:30]} Bxf3 {[%emt 0:00:30]} 17. gxf3 {[%emt 0:00:30]} Nxd4 {[%emt 0:00:30]} 18. Rad1 {[%emt 0:00:30]} Qa5 {[%emt 0:00:30]} 19. Rfe1 {[%emt 0:00:30]} Qf5 {[%emt 0:00:30]} 20. Kg2 {[%emt 0:00:30]} e6 {[%emt 0:00:30]} 21. Qe4 {[%emt 0:00:30]} Rfd8 {[%emt 0:00:30]} 22. Bc7 {[%emt 0:00:30]} Qxe4 {[%emt 0:00:30]} 23. Rxe4 {[%emt 0:00:30]} Rdc8 {[%emt 0:00:30]} 24. Be5 {[%emt 0:00:30]} Nf5 {[%emt 0:00:30]} 25. Bxg7 {[%emt 0:00:30]} Kxg7 {[%emt 0:00:30]} 26. Rb4 {[%emt 0:00:30]} Rab8 {[%emt 0:00:30]} 27. Rxb8 {[%emt 0:00:30]} Rxb8 {[%emt 0:00:30]} 28. b3 {[%emt 0:00:30]} Rc8 {[%emt 0:00:30]} 29. Ne4 {[%emt 0:00:30]} Rc2 {[%emt 0:00:30]} 30. Rd2 {[%emt 0:00:30]} Rc1 {[%emt 0:00:30]} 31. Rd7 {[%emt 0:00:30]} a5 {[%emt 0:00:30]} 32. Ra7 {[%emt 0:00:30]} Nh4+ {[%emt 0:00:30]} 33. Kh3 {[%emt 0:00:30]} Nxf3 {[%emt 0:00:30]} 34. Rxa5 {[%emt 0:00:30]} f5 {[%emt 0:00:30]} 35. Nc5 {[%emt 0:00:30]} Nh4 {[%emt 0:00:30]} 36. Nxe6+ {[%emt 0:00:30]} Kf6 {[%emt 0:00:30]} 37. Nd4 {[%emt 0:00:30]} Rc3+ {[%emt 0:00:30]} 38. f3 {[%emt 0:00:30]} Rd3 {[%emt 0:00:30]} 39. Ra4 {[%emt 0:00:30]} Ke5 {[%emt 0:00:30]} 40. Nc6+ {[%emt 0:00:30]} Kf6 {[%emt 0:00:30]} 41. Rxh4 {[%emt 0:00:30]} gxh4 {[%emt 0:00:30]} 42. Kxh4 {[%emt 0:00:30]} Rxf3 {[%emt 0:00:30]} 43. b4 {[%emt 0:00:30]} Rf2 {[%emt 0:00:30]} 44. a4 {[%emt 0:00:30]} Rxh2+ {[%emt 0:00:30]} 45. Kg3 {[%emt 0:00:30]} Rb2 {[%emt 0:00:30]} 46. b5 {[%emt 0:00:30]} Kg5 {[%emt 0:00:30]} 47. Kf3 {[%emt 0:00:30]} Rb3+ {[%emt 0:00:30]} 48. Ke2 {[%emt 0:00:30]} h5 {[%emt 0:00:30]} 49. Kd2 {[%emt 0:00:30]} h4 {[%emt 0:00:30]} 50. Kc2 {[%emt 0:00:30]} Re3 {[%emt 0:00:30]} 51. b6 {[%emt 0:00:30]} h3 {[%emt 0:00:30]} 52. b7 {[%emt 0:00:30]} Re8 {[%emt 0:00:30]} 53. Nd4 {[%emt 0:00:30]} Kf4 {[%emt 0:00:30]} 54. Ne6+ {[%emt 0:00:30]} Kg3 {[%emt 0:00:30]} 55. Ng7 {[%emt 0:00:30]} Rb8 {[%emt 0:00:30]} 56. Nxf5+ {[%emt 0:00:30]} Kf4 {[%emt 0:00:30]} 57. Nd4 {[%emt 0:00:30]} h2 {[%emt 0:00:30]} 58. Ne2+ {[%emt 0:00:30]} Kf3 {[%emt 0:00:30]} 59. Nd4+ {[%emt 0:00:30]} Kg2 {[%emt 0:00:30]} 60. a5 {[%emt 0:00:30]} h1=Q {[%emt 0:00:30]} 61. a6 {[%emt 0:00:30]} Qh7+ {[%emt 0:00:30]} 62. Kb3 {[%emt 0:00:30]} Qd3+ {[%emt 0:00:30]} 63. Ka2 {[%emt 0:00:30]} Qxd4 {[%emt 0:00:30]} 0-1

[Event "Kuwait Championship Stage-I 2024"]
[Site "Qadsiya"]
[Date "2024.01.22"]
[Round "1.8"]
[White "Qabazard, Mohamed"]
[Black "ALjadi, Athbi"]
[Result "1-0"]
[ECO "C00"]
[WhiteElo "1533"]
[BlackElo "1188"]
[Annotator "NA RC COMBH"]
[PlyCount "135"]
[EventDate "2024.01.22"]
[EventType "swiss"]
[EventCountry "KUW"]
[SourceTitle "playchess.com"]
[Source "ChessBase"]
[SourceQuality "1"]
[TimeControl "5400+30"]

1. e4 {[%emt 0:01:38]} e6 {[%emt 0:00:48]} 2. f4 {[%emt 0:01:39]} d5 {[%emt 0:02:10]} 3. e5 c5 {[%emt 0:00:30]} 4. Nf3 {[%emt 0:12:03]} Nc6 {[%emt 0:04:22]} 5. Bb5 {[%emt 0:02:04]} a6 {[%emt 0:01:22]} 6. Bxc6+ {[%emt 0:04:44]} bxc6 {[%emt 0:00:30]} 7. c4 {[%emt 0:00:30]} Ne7 {[%emt 0:00:30]} 8. Nc3 {[%emt 0:00:30]} Qc7 {[%emt 0:00:30]} 9. d3 {[%emt 0:00:30]} Nf5 {[%emt 0:00:30]} 10. Ne2 {[%emt 0:00:30]} Be7 {[%emt 0:00:30]} 11. O-O {[%emt 0:00:30]} O-O {[%emt 0:00:30]} 12. Qe1 {[%emt 0:00:30]} Qd8 {[%emt 0:00:30]} 13. b3 {[%emt 0:00:30]} Bd7 {[%emt 0:00:30]} 14. Qf2 {[%emt 0:00:30]} Nd4 {[%emt 0:00:30]} 15. Nexd4 {[%emt 0:00:30]} cxd4 {[%emt 0:00:30]} 16. Qxd4 {[%emt 0:00:30]} c5 {[%emt 0:00:30]} 17. Qf2 {[%emt 0:00:30]} d4 {[%emt 0:00:30]} 18. Ba3 {[%emt 0:00:30]} Qa5 {[%emt 0:00:30]} 19. Qb2 {[%emt 0:00:30]} Rfe8 {[%emt 0:00:30]} 20. Qc1 {[%emt 0:00:30]} Bc6 {[%emt 0:00:30]} 21. Bb2 {[%emt 0:00:30]} Rad8 {[%emt 0:00:30]} 22. Qe1 {[%emt 0:00:30]} Qb6 {[%emt 0:00:30]} 23. Bc1 {[%emt 0:00:30]} Rb8 {[%emt 0:00:30]} 24. Bd2 {[%emt 0:00:30]} Qb7 {[%emt 1:11:36]} 25. Ba5 {[%emt 0:51:54]} h6 {[%emt 0:00:56]} 26. Rf2 {[%emt 0:02:32]} Bd8 {[%emt 0:00:43]} 27. Bxd8 {[%emt 0:03:31]} Rexd8 {[%emt 0:00:06]} 28. Qe2 {[%emt 0:01:00]} Re8 {[%emt 0:02:43]} 29. Nd2 {[%emt 0:02:16]} Kh7 {[%emt 0:00:30]} 30. Re1 {[%emt 0:00:30]} Rg8 {[%emt 0:00:30]} 31. g4 {[%emt 0:00:30]} g5 {[%emt 0:00:30]} 32. f5 {[%emt 0:00:30]} Rbe8 {[%emt 0:07:23]} 33. Qf1 {[%emt 0:04:35]} exf5 {[%emt 0:01:36]} 34. Rxf5 {[%emt 0:01:08]} Rg7 {[%emt 0:00:44]} 35. Rf6 {[%emt 0:01:02]} Bd7 {[%emt 0:00:41]} 36. Qh3 {[%emt 0:00:50]} Re6 {[%emt 0:00:21]} 37. Ref1 {[%emt 0:01:29]} Kg8 {[%emt 0:01:07]} 38. Rxe6 {[%emt 0:02:12]} Bxe6 {[%emt 0:00:14]} 39. Ne4 {[%emt 0:00:18]} Rg6 {[%emt 0:00:30]} 40. Rf6 {[%emt 0:00:30]} Rxf6 {[%emt 0:00:30]} 41. Nxf6+ {[%emt 0:00:30]} Kg7 {[%emt 0:00:47]} 42. Ne4 {[%emt 0:02:17]} Qc8 {[%emt 0:00:32]} 43. Nf6 {[%emt 0:00:31]} a5 {[%emt 0:00:30]} 44. Qf3 {[%emt 0:00:30]} Qb8 {[%emt 0:00:30]} 45. Nh5+ {[%emt 0:00:30]} Kf8 {[%emt 0:00:30]} 46. Qf6 {[%emt 0:00:30]} Qe8 {[%emt 0:00:30]} 47. Qxh6+ {[%emt 0:00:30]} Ke7 {[%emt 0:00:57]} 48. Qxg5+ {[%emt 0:00:21]} Kf8 {[%emt 0:00:30]} 49. Nf6 {[%emt 0:01:20]} Qd8 {[%emt 0:00:47]} 50. Qg8+ {[%emt 0:01:11]} Ke7 {[%emt 0:00:30]} 51. Qxd8+ {[%emt 0:00:30]} Kxd8 {[%emt 0:00:00]} 52. h4 {[%emt 0:00:00]} Ke7 {[%emt 0:00:00]} 53. h5 {[%emt 0:00:00]} Kf8 {[%emt 0:00:06]} 54. g5 {[%emt 0:00:12]} Bf5 {[%emt 0:00:31]} 55. h6 {[%emt 0:00:16]} Bxd3 {[%emt 0:00:31]} 56. Nd7+ {[%emt 0:00:29]} Kg8 {[%emt 0:00:30]} 57. Nxc5 {[%emt 0:00:11]} Bb1 {[%emt 0:00:14]} 58. a3 {[%emt 0:01:07]} Bc2 {[%emt 0:00:36]} 59. Kf2 {[%emt 0:00:14]} Kh7 {[%emt 0:00:36]} 60. Ke1 {[%emt 0:00:09]} Kg6 {[%emt 0:00:37]} 61. Kd2 {[%emt 0:00:33]} Bf5 {[%emt 0:00:55]} 62. Nb7 {[%emt 0:01:20]} Kxg5 {[%emt 0:00:24]} 63. Nxa5 {[%emt 0:00:14]} Kf4 {[%emt 0:00:19]} 64. Nc6 {[%emt 0:00:20]} Kg5 {[%emt 0:01:20]} 65. b4 {[%emt 0:00:17]} Kxh6 {[%emt 0:00:18]} 66. b5 {[%emt 0:00:06]} Bc8 {[%emt 0:00:35]} 67. Kd3 {[%emt 0:00:22]} Kg5 {[%emt 0:00:24]} 68. Kxd4 {[%emt 0:00:05]} 1-0

[Event "Kuwait Championship Stage-I 2024"]
[Site "Qadsiya"]
[Date "2024.01.22"]
[Round "1.9"]
[White "Almutairat, Fehan A"]
[Black "Alrashidi, Yousef"]
[Result "0-1"]
[ECO "C50"]
[WhiteElo "1170"]
[BlackElo "1512"]
[Annotator "NA RC COMBH"]
[PlyCount "62"]
[EventDate "2024.01.22"]
[EventType "swiss"]
[EventCountry "KUW"]
[SourceTitle "playchess.com"]
[Source "ChessBase"]
[SourceQuality "1"]
[TimeControl "5400+30"]

1. e4 {[%emt 0:29:03]} e5 {[%emt 0:00:17]} 2. Nf3 {[%emt 0:01:02]} Nc6 {[%emt 0:00:08]} 3. d4 {[%emt 0:00:14]} exd4 {[%emt 0:00:12]} 4. Bc4 {[%emt 0:00:04]} d6 {[%emt 0:06:34]} 5. Nxd4 {[%emt 0:00:56]} Ne5 {[%emt 0:00:59]} 6. Bb3 {[%emt 0:00:27]} Nf6 {[%emt 0:02:41]} 7. Nc3 {[%emt 0:00:16]} c5 {[%emt 0:01:28]} 8. Nf5 {[%emt 0:01:12]} a6 {[%emt 0:03:43]} 9. a3 {[%emt 0:01:30]} Bxf5 {[%emt 0:09:53]} 10. exf5 {[%emt 0:13:00]} c4 {[%emt 0:02:24]} 11. Ba2 {[%emt 0:00:05]} b5 {[%emt 0:09:17]} 12. O-O {[%emt 0:00:35]} Be7 {[%emt 0:00:24]} 13. Nd5 {[%emt 0:00:27]} O-O {[%emt 0:04:17]} 14. Nxe7+ {[%emt 0:00:15]} Qxe7 {[%emt 0:00:02]} 15. h3 {[%emt 0:00:24]} Qd7 {[%emt 0:01:32]} 16. Be3 {[%emt 0:01:45]} d5 {[%emt 0:03:30]} 17. f4 {[%emt 0:00:44]} Nc6 {[%emt 0:00:41]} 18. g4 {[%emt 0:05:17]} d4 {[%emt 0:06:33]} 19. Bf2 {[%emt 0:00:09]} Ne4 {[%emt 0:00:46]} 20. Bh4 {[%emt 0:01:01]} Rfe8 {[%emt 0:05:42]} 21. a4 {[%emt 0:00:13]} Nb4 {[%emt 0:05:45]} 22. c3 {[%emt 0:01:37]} Nxa2 {[%emt 0:02:39]} 23. Rxa2 {[%emt 0:00:09]} d3 {[%emt 0:00:22]} 24. axb5 {[%emt 0:00:52]} axb5 {[%emt 0:03:33]} 25. Rxa8 {[%emt 0:00:22]} Rxa8 {[%emt 0:00:19]} 26. Re1 {[%emt 0:00:24]} Qd5 {[%emt 0:06:19]} 27. Qf3 {[%emt 0:00:52]} Nxc3 {[%emt 0:00:32]} 28. Qe3 {[%emt 0:00:29]} Ne2+ {[%emt 0:00:51]} 29. Kh2 {[%emt 0:01:20]} Qd4 {[%emt 0:06:13]} 30. Rxe2 {[%emt 0:00:35]} Qxe3 {[%emt 0:00:04]} 31. Rxe3 {[%emt 0:00:12]} d2 {[%emt 0:00:01]} 0-1

[Event "Kuwait Championship Stage-I 2024"]
[Site "Qadsiya"]
[Date "2024.01.22"]
[Round "1.11"]
[White "Alhashimi, Hashem"]
[Black "Aldaihani, Turki"]
[Result "0-1"]
[ECO "B10"]
[WhiteElo "1154"]
[BlackElo "1475"]
[Annotator "NA RC COMBH"]
[PlyCount "67"]
[EventDate "2024.01.22"]
[EventType "swiss"]
[EventCountry "KUW"]
[SourceTitle "playchess.com"]
[Source "ChessBase"]
[SourceQuality "1"]
[TimeControl "5400+30"]

1. e4 {[%emt 0:00:05]} c6 {[%emt 0:21:18]} 2. Nf3 {[%emt 0:00:42]} d5 {[%emt 0:00:29]} 3. exd5 {[%emt 0:00:25]} cxd5 {[%emt 0:09:36]} 4. Bb5+ {[%emt 0:00:13]} Nc6 {[%emt 0:00:02]} 5. O-O {[%emt 0:00:09]} Nf6 {[%emt 0:00:13]} 6. d4 {[%emt 0:00:14]} Bg4 {[%emt 0:00:08]} 7. h3 {[%emt 0:01:29]} Bxf3 {[%emt 0:00:36]} 8. Qxf3 {[%emt 0:00:07]} e6 {[%emt 0:00:13]} 9. Bf4 {[%emt 0:00:48]} Qb6 {[%emt 0:00:27]} 10. Bxc6+ {[%emt 0:00:33]} bxc6 {[%emt 0:00:42]} 11. Qc3 {[%emt 0:01:42]} Rc8 {[%emt 0:03:10]} 12. Be5 {[%emt 0:03:41]} Ne4 {[%emt 0:01:57]} 13. Qb3 {[%emt 0:00:29]} f6 {[%emt 0:00:49]} 14. Qxb6 {[%emt 0:01:00]} axb6 {[%emt 0:00:03]} 15. Bf4 {[%emt 0:00:42]} c5 {[%emt 0:01:02]} 16. dxc5 {[%emt 0:06:16]} Bxc5 {[%emt 0:01:18]} 17. Nc3 {[%emt 0:05:33]} Nxc3 {[%emt 0:01:08]} 18. bxc3 {[%emt 0:00:11]} Kf7 {[%emt 0:00:15]} 19. Rfe1 {[%emt 0:01:50]} g5 {[%emt 0:02:09]} 20. Be3 {[%emt 0:03:46]} Rc6 {[%emt 0:13:48]} 21. a4 {[%emt 0:01:58]} Bxe3 {[%emt 0:01:14]} 22. Rxe3 {[%emt 0:00:26]} Ra8 {[%emt 0:00:36]} 23. g3 {[%emt 0:03:05]} Ke7 {[%emt 0:00:38]} 24. Kg2 {[%emt 0:01:31]} Kd6 {[%emt 0:00:09]} 25. Rae1 {[%emt 0:04:38]} e5 {[%emt 0:00:27]} 26. Ra1 {[%emt 0:05:41]} Rc4 {[%emt 0:01:07]} 27. Kf3 {[%emt 0:05:19]} Raxa4 {[%emt 0:02:21]} 28. Rxa4 {[%emt 0:00:26]} Rxa4 {[%emt 0:00:02]} 29. Ke2 {[%emt 0:01:26]} Re4 {[%emt 0:00:22]} 30. Rxe4 {[%emt 0:00:26]} dxe4 {[%emt 0:00:02]} 31. Ke3 {[%emt 0:01:38]} Kd5 {[%emt 0:00:02]} 32. Kd2 {[%emt 0:01:17]} Kc4 {[%emt 0:00:40]} 33. h4 {[%emt 0:00:55]} gxh4 {[%emt 0:00:05]} 34. gxh4 {[%emt 0:00:07]} 0-1